fUST/lending_fUST_20250421
["ID","MTS","AMOUNT","RATE_DAILY","PERIOD"]
[358548784,1745244652664,-500.0,0.00022465,2]
[358548785,1745244652674,-500.0,0.00022465,2]
[358548786,1745244652683,-500.0,0.00022465,2]
[358548787,1745244652692,-607.22,0.00022465,2]
[358548788,1745244652702,-500.0,0.00022465,2]
[358548789,1745244652711,-500.0,0.00022465,2]
[358548790,1745244652723,-500.0,0.00022465,2]
[358548791,1745244652732,-500.0,0.00022465,2]
[358548792,1745244652741,-500.0,0.00022465,2]
[358548793,1745244652751,-500.0,0.00022465,2]
[358548794,1745244652760,-500.0,0.00022465,2]
[358548795,1745244652769,-500.0,0.00022465,2]
[358548796,1745244652778,-500.0,0.00022465,2]
[358548797,1745244652788,-1485.42,0.00022465,2]
[358548798,1745244652798,-500.0,0.00022465,2]
[358548799,1745244652807,-500.0,0.00022465,2]
[358548800,1745244652817,-500.0,0.00022465,2]
[358548801,1745244652826,-229.39350384,0.00022465,2]
[358548802,1745244652836,-500.0,0.00022465,2]
[358548803,1745244652845,-500.0,0.00022465,2]
[358548804,1745244652854,-500.0,0.00022465,2]
[358548805,1745244652864,-500.0,0.00022465,2]
[358548806,1745244652873,-500.0,0.00022465,2]
[358548807,1745244652882,-500.0,0.00022465,2]
[358548808,1745244652891,-640.62,0.00022465,2]
[358548809,1745244652901,-500.0,0.00022465,2]
[358548810,1745244652910,-619.08,0.00022465,2]
[358548811,1745244652919,-500.0,0.00022465,2]
[358548812,1745244652928,-500.0,0.00022465,2]
[358548813,1745244652938,-500.0,0.00022465,2]
[358548814,1745244652947,-500.0,0.00022465,2]
[358548815,1745244652956,-500.0,0.00022465,2]
[358548816,1745244652965,-500.0,0.00022465,2]
[358548817,1745244652977,-500.0,0.00022465,2]
[358548818,1745244652986,-500.0,0.00022465,2]
[358548819,1745244652995,-500.0,0.00022465,2]
[358548820,1745244653004,-500.0,0.00022465,2]
[358548821,1745244653014,-500.0,0.00022465,2]
[358548822,1745244653023,-500.0,0.00022465,2]
[358548823,1745244653033,-500.0,0.00022465,2]
[358548824,1745244653043,-500.0,0.00022465,2]
[358548825,1745244653053,-500.0,0.00022465,2]
[358548826,1745244653062,-500.0,0.00022465,2]
[358548827,1745244653072,-271.16,0.00022465,2]
[358548828,1745244653082,-500.0,0.00022465,2]
[358548829,1745244653091,-353.89001048,0.00022465,2]
[358548830,1745244653101,-500.0,0.00022465,2]
[358548831,1745244653111,-565.15,0.00022465,2]
[358548832,1745244653120,-500.0,0.00022465,2]
[358548833,1745244653130,-500.0,0.00022465,2]
[358548834,1745244653139,-500.0,0.00022465,2]
[358548835,1745244653148,-500.0,0.00022465,2]
[358548836,1745244653158,-586.98,0.00022465,2]
[358548837,1745244653168,-500.0,0.00022465,2]
[358548838,1745244653177,-797.6,0.00022465,2]
[358548839,1745244653187,-500.0,0.00022465,2]
[358548840,1745244653197,-500.0,0.00022465,2]
[358548841,1745244653207,-500.0,0.00022465,2]
[358548842,1745244653216,-500.0,0.00022465,2]
[358548843,1745244653226,-500.0,0.00022465,2]
[358548844,1745244653235,-500.0,0.00022465,2]
[358548845,1745244653245,-500.0,0.00022465,2]
[358548846,1745244653254,-500.0,0.00022465,2]
[358548847,1745244653264,-500.0,0.00022465,2]
[358548848,1745244653273,-298.35976474,0.00022473,2]
[358548849,1745244653283,-420.0,0.00022668,2]
[358548850,1745244653293,-500.88137727,0.00022739,2]
[358548851,1745244653302,-500.0,0.00022739,2]
[358548852,1745244653311,-500.0,0.00022739,2]
[358548853,1745244653321,-566.74071393,0.00022739,2]
[358548854,1745244653332,-188.0,0.00022739,2]
[358548855,1745244653342,-188.63167603,0.00022739,2]
[358548856,1745244653351,-500.0,0.00022739,2]
[358548857,1745244653361,-500.023307,0.00022739,2]
[358548858,1745244653371,-500.0,0.00022739,2]
[358548859,1745244653380,-500.0,0.00022739,2]
[358548860,1745244653390,-500.0,0.00022739,2]
[358548861,1745244653399,-500.0,0.00022739,2]
[358548862,1745244653409,-500.0,0.00022739,2]
[358548863,1745244653419,-500.0,0.00022739,2]
[358548864,1745244653429,-500.0,0.00022739,2]
[358548865,1745244653439,-500.0,0.00022739,2]
[358548866,1745244653449,-500.0,0.00022739,2]
[358548867,1745244653458,-500.0,0.00022739,2]
[358548868,1745244653468,-500.0,0.00022739,2]
[358548869,1745244653478,-500.0,0.00022739,2]
[358548870,1745244653488,-500.0,0.00022739,2]
[358548871,1745244653497,-500.0,0.00022739,2]
[358548872,1745244653508,-500.0,0.00022739,2]
[358548873,1745244653517,-500.0,0.00022739,2]
[358548874,1745244653527,-500.0,0.00022739,2]
[358548875,1745244653536,-529.16490326,0.00022739,2]
[358548876,1745244653546,-500.0,0.00022739,2]
[358548877,1745244653555,-500.0,0.00022739,2]
[358548878,1745244653565,-500.0,0.00022739,2]
[358548879,1745244653575,-204.52,0.00022739,2]
[358548880,1745244653584,-500.0,0.00022739,2]
[358548881,1745244653593,-500.0,0.00022739,2]
[358548882,1745244653603,-500.0,0.00022739,2]
[358548883,1745244653613,-500.0,0.00022739,2]
[358548884,1745244653623,-500.0,0.00022739,2]
[358548885,1745244653633,-500.0,0.00022739,2]
[358548886,1745244653642,-500.0,0.00022739,2]
[358548887,1745244653652,-500.0,0.00022739,2]
[358548888,1745244653662,-500.0,0.00022739,2]
[358548889,1745244653672,-500.0,0.00022739,2]
[358548890,1745244653681,-500.0,0.00022739,2]
[358548891,1745244653691,-202.56,0.00022739,2]
[358548892,1745244653700,-530.77,0.00022739,2]
[358548893,1745244653709,-500.0,0.00022739,2]
[358548894,1745244653719,-500.0,0.00022739,2]
[358548895,1745244653729,-500.0,0.00022739,2]
[358548896,1745244653738,-500.0,0.00022739,2]
[358548897,1745244653748,-500.0,0.00022739,2]
[358548898,1745244653757,-259.84,0.00022739,2]
[358548899,1745244653767,-500.0,0.00022739,2]
[358548900,1745244653776,-500.0,0.00022739,2]
[358548901,1745244653785,-500.0,0.00022739,2]
[358548902,1745244653795,-500.0,0.00022739,2]
[358548903,1745244653804,-500.0,0.00022739,2]
[358548904,1745244653813,-500.0,0.00022739,2]
[358548905,1745244653823,-500.0,0.00022739,2]
[358548906,1745244653833,-500.0,0.00022739,2]
[358548907,1745244653843,-175.89194595,0.00022739,2]
[358548908,1745244653853,-500.0,0.00022739,2]
[358548909,1745244653862,-766.79,0.00022739,2]
[358548910,1745244653871,-500.0,0.00022739,2]
[358548911,1745244653881,-500.0,0.00022739,2]
[358548912,1745244653890,-500.0,0.00022739,2]
[358548913,1745244653900,-500.0,0.00022739,2]
[358548914,1745244653910,-500.0,0.00022739,2]
[358548915,1745244653920,-500.0,0.00022739,2]
[358548916,1745244653930,-500.0,0.00022739,2]
[358548917,1745244653939,-500.0,0.00022739,2]
[358548918,1745244653949,-500.0,0.00022739,2]
[358548919,1745244653958,-1897.2,0.00022739,2]
[358548920,1745244653969,-585.04,0.00022739,2]
[358548921,1745244653978,-500.0,0.00022739,2]
[358548922,1745244653988,-500.0,0.00022739,2]
[358548923,1745244653997,-500.0,0.00022739,2]
[358548924,1745244654007,-500.0,0.00022739,2]
[358548925,1745244654016,-613.12,0.00022739,2]
[358548926,1745244654026,-182.22,0.00022739,2]
[358548927,1745244654036,-500.0,0.00022739,2]
[358548928,1745244654046,-500.0,0.00022739,2]
[358548929,1745244654055,-500.0,0.00022739,2]
[358548930,1745244654065,-500.0,0.00022739,2]
[358548931,1745244654075,-500.0,0.00022739,2]
[358548932,1745244654085,-500.0,0.00022739,2]
[358548933,1745244654094,-500.0,0.00022739,2]
[358548934,1745244654103,-1485.42,0.00022739,2]
[358548935,1745244654113,-500.0,0.00022739,2]
[358548936,1745244654123,-500.0,0.00022739,2]
[358548937,1745244654132,-500.0,0.00022739,2]
[358548938,1745244654142,-500.0,0.00022739,2]
[358548939,1745244654152,-500.0,0.00022739,2]
[358548940,1745244654163,-500.0,0.00022739,2]
[358548941,1745244654173,-500.0,0.00022739,2]
[358548942,1745244654183,-501.67,0.00022739,2]
[358548943,1745244654193,-480.36,0.00022739,2]
[358548944,1745244654203,-500.0,0.00022739,2]
[358548945,1745244654212,-600.52,0.00022739,2]
[358548946,1745244654222,-500.0,0.00022739,2]
[358548947,1745244654231,-500.0,0.00022739,2]
[358548948,1745244654241,-500.0,0.00022739,2]
[358548949,1745244654251,-500.0,0.00022739,2]
[358548950,1745244654261,-500.0,0.00022739,2]
[358548951,1745244654270,-500.0,0.00022739,2]
[358548952,1745244654280,-303.32,0.00022739,2]
[358548953,1745244654290,-393.42,0.00022739,2]
[358548954,1745244654299,-500.0,0.00022739,2]
[358548955,1745244654308,-558.95400795,0.00022739,2]
[358548956,1745244654318,-500.0,0.00022739,2]
[358548957,1745244654442,-500.0,0.00022739,2]
[358548958,1745244654467,-797.6,0.00022739,2]
[358548959,1745244654478,-500.0,0.00022739,2]
[358548960,1745244654489,-500.0,0.00022739,2]
[358548961,1745244654500,-500.0,0.00022739,2]
[358548962,1745244654510,-500.0,0.00022739,2]
[358548963,1745244654519,-500.0,0.00022739,2]
[358548964,1745244654529,-420.0,0.00022776,2]
[358548965,1745244654539,-325.67446916,0.000229,2]
[358548966,1745244654549,-214.84228593,0.000229,2]
[358548967,1745244654559,-424.72463067,0.00022983,2]
[358548968,1745244654568,-200.0,0.00023,2]
[358548969,1745244654578,-500.0,0.00023013,2]
[358548970,1745244654588,-196.34,0.00023013,2]
[358548971,1745244654598,-250.4,0.00023013,2]
[358548972,1745244654608,-500.0,0.00023013,2]
[358548973,1745244654618,-275.76,0.00023013,2]
[358548974,1745244654627,-500.0,0.00023013,2]
[358548975,1745244654637,-500.0,0.00023013,2]
[358548976,1745244654647,-500.0,0.00023013,2]
[358548977,1745244654658,-271.1,0.00023013,2]
[358548978,1745244654668,-425.2,0.00023013,2]
[358548979,1745244654678,-500.0,0.00023013,2]
[358548980,1745244654689,-500.0,0.00023013,2]
[358548981,1745244654699,-353.56,0.00023013,2]
[358548982,1745244654709,-500.0,0.00023013,2]
[358548983,1745244654720,-500.0,0.00023013,2]
[358548984,1745244654729,-500.0,0.00023013,2]
[358548985,1745244654739,-500.0,0.00023013,2]
[358548986,1745244654749,-500.0,0.00023013,2]
[358548987,1745244654759,-766.79,0.00023013,2]
[358548988,1745244654769,-500.0,0.00023013,2]
[358548989,1745244654778,-500.0,0.00023013,2]
[358548990,1745244654789,-500.0,0.00023013,2]
[358548991,1745244654799,-286.82,0.00023013,2]
[358548992,1745244654809,-500.0,0.00023013,2]
[358548993,1745244654819,-384.66,0.00023013,2]
[358548994,1745244654829,-500.0,0.00023013,2]
[358548995,1745244654839,-1897.2,0.00023013,2]
[358548996,1745244654848,-500.0,0.00023013,2]
[358548997,1745244654859,-500.0,0.00023013,2]
[358548998,1745244654868,-500.0,0.00023013,2]
[358548999,1745244654878,-500.0,0.00023013,2]
[358549000,1745244654887,-500.0,0.00023013,2]
[358549001,1745244654897,-500.0,0.00023013,2]
[358549002,1745244654907,-500.0,0.00023013,2]
[358549003,1745244654916,-500.0,0.00023013,2]
[358549004,1745244654926,-1485.42,0.00023013,2]
[358549005,1745244654936,-499.88,0.00023013,2]
[358549006,1745244654946,-500.0,0.00023013,2]
[358549007,1745244654956,-500.0,0.00023013,2]
[358549008,1745244654966,-500.0,0.00023013,2]
[358549009,1745244654979,-500.0,0.00023013,2]
[358549010,1745244654988,-500.0,0.00023013,2]
[358549011,1745244654998,-500.0,0.00023013,2]
[358549012,1745244655009,-153.4,0.00023013,2]
[358549013,1745244655018,-601.26,0.00023013,2]
[358549014,1745244655027,-500.0,0.00023013,2]
[358549015,1745244655037,-500.0,0.00023013,2]
[358549016,1745244655047,-500.0,0.00023013,2]
[358549017,1745244655056,-500.0,0.00023013,2]
[358549018,1745244655066,-500.0,0.00023013,2]
[358549019,1745244655075,-797.6,0.00023013,2]
[358549020,1745244655084,-500.0,0.00023013,2]
[358549021,1745244655094,-500.0,0.00023013,2]
[358549022,1745244655103,-500.0,0.00023013,2]
[358549023,1745244655112,-500.0,0.00023013,2]
[358549024,1745244655122,-500.0,0.00023287,2]
[358549025,1745244655131,-500.0,0.00023287,2]
[358549026,1745244655140,-500.0,0.00023287,2]
[358549027,1745244655150,-500.0,0.00023287,2]
[358549028,1745244655159,-500.0,0.00023287,2]
[358549029,1745244655168,-500.0,0.00023287,2]
[358549030,1745244655178,-500.0,0.00023287,2]
[358549031,1745244655187,-362.74,0.00023287,2]
[358549032,1745244655196,-500.0,0.00023287,2]
[358549033,1745244655205,-162.6,0.00023287,2]
[358549034,1745244655215,-327.02,0.00023287,2]
[358549035,1745244655226,-766.79,0.00023287,2]
[358549036,1745244655235,-500.0,0.00023287,2]
[358549037,1745244655244,-267.62,0.00023287,2]
[358549038,1745244655254,-1897.2,0.00023287,2]
[358549039,1745244655263,-473.16624759,0.00023287,2]
[358549040,1745244655273,-500.0,0.00023287,2]
[358549041,1745244655282,-500.0,0.00023287,2]
[358549042,1745244655292,-500.0,0.00023287,2]
[358549043,1745244655301,-500.0,0.00023287,2]
[358549044,1745244655310,-1485.42,0.00023287,2]
[358549045,1745244655320,-500.0,0.00023287,2]
[358549046,1745244655330,-534.92,0.00023287,2]
[358549047,1745244655343,-382.3,0.00023287,2]
[358549048,1745244655353,-500.0,0.00023287,2]
[358549049,1745244655363,-500.0,0.00023287,2]
[358549050,1745244655373,-797.6,0.00023287,2]
[358549051,1745244655383,-500.0,0.00023287,2]
[358549052,1745244655392,-500.0,0.00023287,2]
[358549053,1745244655402,-500.0,0.00023287,2]
[358549054,1745244655412,-500.0,0.00023287,2]
[358549055,1745244655422,-160.0,0.00023532,2]
[358549056,1745244655435,-160.0,0.00023532,2]
[358549057,1745244655445,-420.65680271,0.00023532,2]
[358549058,1745244655456,-729.16666667,0.00023532,2]
[358549059,1745244655466,-160.0,0.00023532,2]
[358549060,1745244655477,-294.68,0.00023561,2]
[358549061,1745244655487,-179.54,0.00023561,2]
[358549062,1745244655497,-500.0,0.00023561,2]
[358549063,1745244655507,-500.0,0.00023561,2]
[358549064,1745244655516,-500.0,0.00023561,2]
[358549065,1745244655526,-247.63,0.00023561,2]
[358549066,1745244655536,-500.0,0.00023561,2]
[358549067,1745244655546,-500.0,0.00023561,2]
[358549068,1745244655556,-766.79,0.00023561,2]
[358549069,1745244655566,-486.22701723,0.00023561,2]
[358549070,1745244655576,-1897.2,0.00023561,2]
[358549071,1745244655585,-548.14,0.00023561,2]
[358549072,1745244655595,-500.0,0.00023561,2]
[358549073,1745244655604,-500.0,0.00023561,2]
[358549074,1745244655614,-1485.42,0.00023561,2]
[358549075,1745244655624,-500.0,0.00023561,2]
[358549076,1745244655633,-500.0,0.00023561,2]
[358549077,1745244655644,-465.97,0.00023561,2]
[358549078,1745244655654,-797.6,0.00023561,2]
[358549079,1745244655664,-500.0,0.00023561,2]
[358549080,1745244655674,-500.0,0.00023561,2]
[358549081,1745244655683,-500.0,0.00023561,2]
[358549082,1745244655693,-500.0,0.00023561,2]
[358549083,1745244655703,-600.0,0.00023616,2]
[358549084,1745244655712,-151.0,0.00023642,7]
[358549085,1745244655723,-500.0,0.00023835,2]
[358549086,1745244655733,-398.58,0.00023835,2]
[358549087,1745244655743,-500.0,0.00023835,2]
[358549088,1745244655752,-500.0,0.00023835,2]
[358549089,1745244655762,-330.08,0.00023835,2]
[358549090,1745244655772,-766.79,0.00023835,2]
[358549091,1745244655782,-1897.2,0.00023835,2]
[358549092,1745244655791,-500.0,0.00023835,2]
[358549093,1745244655801,-500.0,0.00023835,2]
[358549094,1745244655811,-1485.42,0.00023835,2]
[358549095,1745244655820,-500.0,0.00023835,2]
[358549096,1745244655831,-500.0,0.00023835,2]
[358549097,1745244655840,-797.6,0.00023835,2]
[358549098,1745244655850,-500.0,0.00023835,2]
[358549099,1745244655860,-500.0,0.00023835,2]
[358549100,1745244655869,-606.27,0.00023835,2]
[358549101,1745244655879,-500.0,0.00023835,2]
[358549102,1745244655889,-500.0,0.00024109,2]
[358549103,1745244655899,-500.0,0.00024109,2]
[358549104,1745244655909,-500.0,0.00024109,2]
[358549105,1745244655918,-766.79,0.00024109,2]
[358549106,1745244655927,-1897.2,0.00024109,2]
[358549107,1745244655937,-500.0,0.00024109,2]
[358549108,1745244655947,-500.0,0.00024109,2]
[358549109,1745244655957,-1485.42,0.00024109,2]
[358549110,1745244655967,-500.0,0.00024109,2]
[358549111,1745244655978,-500.0,0.00024109,2]
[358549112,1745244655988,-797.6,0.00024109,2]
[358549113,1745244655998,-483.41,0.00024109,2]
[358549114,1745244656008,-500.0,0.00024109,2]
[358549115,1745244656017,-500.0,0.00024109,2]
[358549116,1745244656027,-151.0,0.00024383,7]
[358549117,1745244656036,-500.0,0.00024383,2]
[358549118,1745244656046,-500.0,0.00024383,2]
[358549119,1745244656055,-500.0,0.00024383,2]
[358549120,1745244656065,-766.79,0.00024383,2]
[358549121,1745244656074,-1897.2,0.00024383,2]
[358549122,1745244656084,-500.0,0.00024383,2]
[358549123,1745244656094,-500.0,0.00024383,2]
[358549124,1745244656103,-1485.42,0.00024383,2]
[358549125,1745244656112,-500.0,0.00024383,2]
[358549126,1745244656123,-500.0,0.00024383,2]
[358549127,1745244656132,-797.6,0.00024383,2]
[358549128,1745244656141,-426.37,0.00024383,2]
[358549129,1745244656151,-500.0,0.00024383,2]
[358549130,1745244656160,-500.0,0.00024657,2]
[358549131,1745244656170,-500.0,0.00024657,2]
[358549132,1745244656179,-500.0,0.00024657,2]
[358549133,1745244656189,-766.79,0.00024657,2]
[358549134,1745244656199,-1897.2,0.00024657,2]
[358549135,1745244656209,-500.0,0.00024657,2]
[358549136,1745244656220,-500.0,0.00024657,2]
[358549137,1745244656229,-1485.42,0.00024657,2]
[358549138,1745244656239,-500.0,0.00024657,2]
[358549139,1745244656249,-500.0,0.00024657,2]
[358549140,1745244656258,-797.6,0.00024657,2]
[358549141,1745244656268,-200.0,0.00024658,15]
[358549142,1745244656277,-346.0416704,0.00024658,2]
[358549143,1745244656287,-252.00619971,0.00024658,2]
[358549144,1745244656297,-500.0,0.00024658,2]
[358549145,1745244656307,-500.0,0.00024658,2]
[358549146,1745244656317,-587.0,0.00024662,2]
[358549147,1745244656435,-200.0,0.000247,2]
[358549148,1745244656446,-151.0,0.000248,7]
[358549149,1745244656456,-587.0,0.00024897,2]
[358549150,1745244656466,-151.0,0.000249,7]
[358549151,1745244656477,-886819.774261,0.000249,2]
[358549152,1745244656487,-500.0,0.00024931,2]
[358549153,1745244656497,-500.0,0.00024931,2]
[358549154,1745244656508,-500.0,0.00024931,2]
[358549155,1745244656518,-766.79,0.00024931,2]
[358549156,1745244656528,-1897.2,0.00024931,2]
[358549157,1745244656537,-500.0,0.00024931,2]
[358549158,1745244656548,-500.0,0.00024931,2]
[358549159,1745244656558,-1485.42,0.00024931,2]
[358549160,1745244656568,-500.0,0.00024931,2]
[358549161,1745244656579,-500.0,0.00024931,2]
[358549162,1745244656589,-797.6,0.00024931,2]
[358549163,1745244656598,-650.27,0.00025,2]
[358549164,1745244656608,-952.54953562,0.00025052,2]
[358549165,1745244656619,-500.0,0.00025205,2]
[358549166,1745244656629,-492.63,0.00025205,2]
[358549167,1745244656639,-500.0,0.00025205,2]
[358549168,1745244656649,-766.79,0.00025205,2]
[358549169,1745244656662,-1897.2,0.00025205,2]
[358549170,1745244656672,-500.0,0.00025205,2]
[358549171,1745244656682,-500.0,0.00025205,2]
[358549172,1745244656693,-1485.42,0.00025205,2]
[358549173,1745244656703,-500.0,0.00025205,2]
[358549174,1745244656713,-500.0,0.00025205,2]
[358549175,1745244656723,-797.6,0.00025205,2]
[358549176,1745244656734,-900.0,0.0002526,2]
[358549177,1745244656744,-500.0,0.00025479,2]
[358549178,1745244656753,-500.0,0.00025479,2]
[358549179,1745244656764,-766.79,0.00025479,2]
[358549180,1745244656774,-1897.2,0.00025479,2]
[358549181,1745244656784,-500.0,0.00025479,2]
[358549182,1745244656795,-500.0,0.00025479,2]
[358549183,1745244656806,-1485.42,0.00025479,2]
[358549184,1745244656815,-500.0,0.00025479,2]
[358549185,1745244656826,-500.0,0.00025479,2]
[358549186,1745244656835,-797.6,0.00025479,2]
[358549187,1745244656845,-250.0,0.00025512,2]
[358549188,1745244656855,-500.0,0.00025753,2]
[358549189,1745244656865,-557.75,0.00025753,2]
[358549190,1745244656875,-766.79,0.00025753,2]
[358549191,1745244656885,-1897.2,0.00025753,2]
[358549192,1745244656894,-500.0,0.00025753,2]
[358549193,1745244656904,-500.0,0.00025753,2]
[358549194,1745244656913,-1485.42,0.00025753,2]
[358549195,1745244656923,-457.02,0.00025753,2]
[358549196,1745244656933,-500.0,0.00025753,2]
[358549197,1745244656943,-797.6,0.00025753,2]
[358549198,1745244656952,-151.0,0.00026027,7]
[358549199,1745244656962,-500.0,0.00026027,2]
[358549200,1745244656972,-766.79,0.00026027,2]
[358549201,1745244656982,-1897.2,0.00026027,2]
[358549202,1745244656991,-500.0,0.00026027,2]
[358549203,1745244657001,-500.0,0.00026027,2]
[358549204,1745244657011,-1485.42,0.00026027,2]
[358549205,1745244657020,-500.0,0.00026027,2]
[358549206,1745244657029,-797.6,0.00026027,2]
[358549207,1745244657039,-555.20024292,0.0002613,2]
[358549208,1745244657048,-500.0,0.00026301,2]
[358549209,1745244657058,-766.79,0.00026301,2]
[358549210,1745244657067,-1897.2,0.00026301,2]
[358549211,1745244657077,-500.0,0.00026301,2]
[358549212,1745244657086,-500.0,0.00026301,2]
[358549213,1745244657096,-1485.42,0.00026301,2]
[358549214,1745244657105,-500.0,0.00026301,2]
[358549215,1745244657115,-797.6,0.00026301,2]
[358549216,1745244657125,-305.36,0.00026575,2]
[358549217,1745244657135,-766.79,0.00026575,2]
[358549218,1745244657145,-1897.2,0.00026575,2]
[358549219,1745244657155,-500.0,0.00026575,2]
[358549220,1745244657164,-304.20146246,0.00026575,2]
[358549221,1745244657174,-1485.42,0.00026575,2]
[358549222,1745244657184,-500.0,0.00026575,2]
[358549223,1745244657193,-797.6,0.00026575,2]
[358549224,1745244657202,-151.0,0.000268,7]
[358549225,1745244657212,-823.0,0.00026831,2]
[358549226,1745244657222,-766.79,0.00026849,2]
[358549227,1745244657232,-1897.2,0.00026849,2]
[358549228,1745244657242,-500.0,0.00026849,2]
[358549229,1745244657251,-1485.42,0.00026849,2]
[358549230,1745244657260,-612.79158068,0.00026849,2]
[358549231,1745244657269,-797.6,0.00026849,2]
[358549232,1745244657278,-1200.0,0.00026904,2]
[358549233,1745244657288,-312.84021666,0.00027,3]
[358549234,1745244657297,-312.84021666,0.00027,3]
[358549235,1745244657307,-766.79,0.00027123,2]
[358549236,1745244657316,-1897.2,0.00027123,2]
[358549237,1745244657326,-312.17509067,0.00027123,2]
[358549238,1745244657338,-1485.42,0.00027123,2]
[358549239,1745244657348,-797.6,0.00027123,2]
[358549240,1745244657357,-823.0,0.00027216,2]
[358549241,1745244657367,-766.79,0.00027397,2]
[358549242,1745244657378,-1897.2,0.00027397,2]
[358549243,1745244657387,-1485.42,0.00027397,2]
[358549244,1745244657397,-797.6,0.00027397,2]
[358549245,1745244657410,-500.0,0.00027397,2]
[358549246,1745244657420,-1076.478256,0.00027397,2]
[358549247,1745244657429,-271.856894,0.00027397,120]
[358549248,1745244657439,-151.0,0.00027452,7]
[358549249,1745244657450,-1110.83560204,0.00027452,5]
[358549250,1745244657459,-1000.0,0.00027452,5]
[358549251,1745244657468,-1000.0,0.00027452,5]
[358549252,1745244657478,-1000.0,0.00027452,5]
[358549253,1745244657489,-1000.0,0.00027452,5]
[358549254,1745244657498,-1000.0,0.00027452,5]
[358549255,1745244657508,-1000.0,0.00027452,5]
[358549256,1745244657517,-500.0,0.00027505,5]
[358549257,1745244657527,-500.0,0.00027534,2]
[358549258,1745244657536,-1000.0,0.00027652,5]
[358549259,1745244657546,-1000.0,0.00027652,5]
[358549260,1745244657555,-1000.0,0.00027652,5]
[358549261,1745244657565,-1043.37845199,0.00027652,5]
[358549262,1745244657574,-1000.0,0.00027652,5]
[358549263,1745244657584,-1000.0,0.00027652,5]
[358549264,1745244657594,-1000.0,0.00027652,5]
[358549265,1745244657603,-798.16591741,0.00027652,5]
[358549266,1745244657613,-457.323273,0.00027652,5]
[358549267,1745244657623,-1000.0,0.00027652,5]
[358549268,1745244657633,-1000.0,0.00027652,5]
[358549269,1745244657643,-1000.0,0.00027652,5]
[358549270,1745244657652,-1000.0,0.00027652,5]
[358549271,1745244657662,-1000.0,0.00027652,5]
[358549272,1745244657671,-500.0,0.00027671,2]
[358549273,1745244657681,-766.79,0.00027671,2]
[358549274,1745244657690,-1897.2,0.00027671,2]
[358549275,1745244657700,-1485.42,0.00027671,2]
[358549276,1745244657710,-797.6,0.00027671,2]
[358549277,1745244657719,-500.0,0.00027808,2]
[358549278,1745244657729,-325.67446916,0.000279,2]
[358549279,1745244657738,-500.0,0.00027945,2]
[358549280,1745244657748,-766.79,0.00027945,2]
[358549281,1745244657757,-1897.2,0.00027945,2]
[358549282,1745244657767,-1485.42,0.00027945,2]
[358549283,1745244657777,-797.6,0.00027945,2]